fUSD/lending_fUSD_20251025
["ID","MTS","AMOUNT","RATE_DAILY","PERIOD"]
[392365207,1761407444433,-151.0,0.00029785,30]
[392365208,1761407444442,-151.0,0.00029785,30]
[392365209,1761407444452,-151.0,0.00029785,30]
[392365210,1761407444462,-151.0,0.00029785,30]
[392365211,1761407444472,-151.0,0.00029785,30]
[392365212,1761407444481,-151.0,0.00029785,30]
[392365213,1761407444492,-151.0,0.00029785,30]
[392365214,1761407444501,-206.252572,0.00029785,30]
[392365215,1761407444510,-206.252572,0.00029785,30]
[392365216,1761407444519,-151.0,0.00029785,30]
[392365217,1761407444529,-229.306763,0.00029785,30]
[392365218,1761407444538,-206.252572,0.00029785,30]
[392365219,1761407444548,-151.0,0.00029785,30]
[392365220,1761407444557,-206.252572,0.00029785,30]
[392365221,1761407444567,-984.013067,0.00029785,30]
[392365222,1761407444578,-151.0,0.00029785,30]
[392365223,1761407444587,-151.0,0.00029785,30]
[392365224,1761407444596,-229.306763,0.00029785,30]
[392365225,1761407444605,-984.013067,0.00029785,30]
[392365226,1761407444614,-151.0,0.00029785,30]
[392365227,1761407444623,-151.0,0.00029785,30]
[392365228,1761407444636,-229.306763,0.00029785,30]
[392365229,1761407444646,-984.013067,0.00029785,30]
[392365230,1761407444655,-151.0,0.00029785,30]
[392365231,1761407444664,-229.306763,0.00029785,30]
[392365232,1761407444674,-984.013067,0.00029785,30]
[392365233,1761407444683,-151.0,0.00029785,30]
[392365234,1761407444692,-151.0,0.00029785,30]
[392365235,1761407444703,-151.0,0.00029785,30]
[392365236,1761407444713,-151.0,0.00029785,30]
[392365237,1761407444724,-151.0,0.00029785,30]
[392365238,1761407444733,-151.0,0.00029785,30]
[392365239,1761407444743,-151.0,0.00029785,30]
[392365240,1761407444752,-151.0,0.00029785,30]
[392365241,1761407444762,-154.582619,0.00029785,30]
[392365242,1761407444772,-422.804018,0.00029785,30]
[392365243,1761407444781,-151.0,0.00029785,30]
[392365244,1761407444790,-154.582619,0.00029785,30]
[392365245,1761407444801,-422.804018,0.00029785,30]
[392365246,1761407444810,-151.0,0.00029785,30]
[392365247,1761407444820,-151.413882,0.00029785,30]
[392365248,1761407444833,-154.582619,0.00029785,30]
[392365249,1761407444842,-422.804018,0.00029785,30]
[392365250,1761407444852,-151.0,0.00029785,30]
[392365251,1761407444861,-152.131695,0.00029785,30]
[392365252,1761407444872,-151.0,0.00029785,30]
[392365253,1761407444882,-154.582619,0.00029785,30]
[392365254,1761407444893,-422.804018,0.00029785,30]
[392365255,1761407444902,-151.0,0.00029785,30]
[392365256,1761407444911,-151.0,0.00029785,30]
[392365257,1761407444920,-11750.9496539,0.00029786,2]
[392365258,1761407444930,-662.77,0.00029787,14]
[392365259,1761407444939,-2785.47399732,0.00029794,2]
[392365260,1761407444949,-1148.0,0.00029796,2]
[392365261,1761407444958,-500.0,0.000298,10]
[392365262,1761407444967,-537.37524524,0.00029804,2]
[392365263,1761407444977,-11437.4890408,0.00029805,2]
[392365264,1761407444986,-11750.9496539,0.00029805,2]
[392365265,1761407444995,-152.0,0.00029805,4]
[392365266,1761407445004,-350.0,0.00029811,2]
[392365267,1761407445013,-500.0,0.00029814,9]
[392365268,1761407445023,-286.94056886,0.00029814,9]
[392365269,1761407445036,-514.39450058,0.00029814,9]
[392365270,1761407445045,-4317.19,0.00029815,2]
[392365271,1761407445055,-8904.45,0.00029815,2]
[392365272,1761407445064,-9999.99,0.00029815,2]
[392365273,1761407445073,-150.0,0.00029824,7]
[392365274,1761407445083,-1061.0,0.00029843,5]
[392365275,1761407445092,-150.68,0.00029848,2]
[392365276,1761407445101,-150.0,0.0002986,7]
[392365277,1761407445111,-461.489323,0.00029873,5]
[392365278,1761407445120,-374.35151,0.00029887,30]
[392365279,1761407445130,-151.0,0.00029887,30]
[392365280,1761407445139,-374.35151,0.00029887,30]
[392365281,1761407445148,-773.083977,0.00029887,30]
[392365282,1761407445158,-151.0,0.00029887,30]
[392365283,1761407445167,-374.35151,0.00029887,30]
[392365284,1761407445177,-151.0,0.00029887,30]
[392365285,1761407445186,-773.083977,0.00029887,30]
[392365286,1761407445196,-151.0,0.00029887,30]
[392365287,1761407445208,-374.35151,0.00029887,30]
[392365288,1761407445217,-151.0,0.00029887,30]
[392365289,1761407445227,-773.083977,0.00029887,30]
[392365290,1761407445236,-773.083977,0.00029887,30]
[392365291,1761407445247,-151.0,0.00029887,30]
[392365292,1761407445260,-151.0,0.00029887,30]
[392365293,1761407445269,-151.0,0.00029887,30]
[392365294,1761407445278,-151.0,0.00029887,30]
[392365295,1761407445288,-151.0,0.00029887,30]
[392365296,1761407445299,-151.0,0.00029887,30]
[392365297,1761407445308,-151.0,0.00029887,30]
[392365298,1761407445317,-151.926265,0.00029887,30]
[392365299,1761407445327,-151.0,0.00029887,30]
[392365300,1761407445336,-240.590772,0.00029887,30]
[392365301,1761407445346,-151.0,0.00029887,30]
[392365302,1761407445355,-151.0,0.00029887,30]
[392365303,1761407445364,-151.0,0.00029887,30]
[392365304,1761407445373,-229.662786,0.00029887,30]
[392365305,1761407445382,-151.0,0.00029887,30]
[392365306,1761407445391,-151.0,0.00029887,30]
[392365307,1761407445400,-229.662786,0.00029887,30]
[392365308,1761407445410,-151.0,0.00029887,30]
[392365309,1761407445426,-229.662786,0.00029887,30]
[392365310,1761407445439,-151.0,0.00029887,30]
[392365311,1761407445451,-229.662786,0.00029887,30]
[392365312,1761407445461,-743.19,0.00029891,9]
[392365313,1761407445471,-500.0,0.00029891,9]
[392365314,1761407445481,-1000.0,0.000299,10]
[392365315,1761407445491,-450.0,0.000299,7]
[392365316,1761407445500,-150.0,0.00029953,7]
[392365317,1761407445510,-150.0,0.00029953,7]
[392365318,1761407445521,-10773.8664292,0.0002998,2]
[392365319,1761407445531,-2264.65,0.00029982,9]
[392365320,1761407445541,-11437.4890408,0.0003,2]
[392365321,1761407445551,-1015.993,0.00030014,24]
[392365322,1761407445561,-150.0,0.00030018,7]
[392365323,1761407445571,-11750.9496539,0.00030031,2]
[392365324,1761407445582,-150.51,0.00030037,2]
[392365325,1761407445592,-1201.86,0.00030037,2]
[392365326,1761407445602,-547.75,0.00030037,2]
[392365327,1761407445612,-308.01,0.00030037,2]
[392365328,1761407445623,-414.48,0.00030037,2]
[392365329,1761407445633,-333.53,0.00030037,2]
[392365330,1761407445643,-156.05,0.00030037,2]
[392365331,1761407445653,-150.0,0.00030037,2]
[392365332,1761407445663,-168.56,0.00030037,2]
[392365333,1761407445674,-150.0,0.00030037,2]
[392365334,1761407445683,-150.0,0.00030037,2]
[392365335,1761407445693,-150.0,0.00030037,2]
[392365336,1761407445704,-176.4,0.00030037,2]
[392365337,1761407445714,-547.75,0.00030037,2]
[392365338,1761407445725,-1201.86,0.00030037,2]
[392365339,1761407445735,-168.56,0.00030037,2]
[392365340,1761407445745,-150.0,0.00030037,2]
[392365341,1761407445755,-150.0,0.00030037,2]
[392365342,1761407445765,-150.0,0.00030037,2]
[392365344,1761407445774,-150.0,0.00030037,2]
[392365345,1761407445784,-11437.4890408,0.00030041,2]
[392365346,1761407445793,-151.0,0.00030042,30]
[392365347,1761407445803,-151.0,0.00030042,30]
[392365348,1761407445814,-422.804018,0.00030042,30]
[392365349,1761407445824,-151.0,0.00030042,30]
[392365350,1761407445834,-422.804018,0.00030042,30]
[392365351,1761407445844,-151.0,0.00030042,30]
[392365352,1761407445853,-422.804018,0.00030042,30]
[392365353,1761407445863,-151.0,0.00030042,30]
[392365354,1761407445873,-151.0,0.00030042,30]
[392365355,1761407445882,-422.804018,0.00030042,30]
[392365356,1761407445893,-151.0,0.00030042,30]
[392365357,1761407445903,-11750.9496539,0.00030042,2]
[392365358,1761407445913,-151.0,0.00030051,30]
[392365359,1761407445922,-151.0,0.00030051,30]
[392365360,1761407445932,-151.0,0.00030051,30]
[392365361,1761407445942,-151.0,0.00030051,30]
[392365362,1761407445952,-175.614881,0.00030051,30]
[392365363,1761407445962,-151.0,0.00030051,30]
[392365364,1761407445972,-151.0,0.00030051,30]
[392365365,1761407445982,-151.0,0.00030051,30]
[392365366,1761407445992,-151.0,0.00030051,30]
[392365367,1761407446002,-405.263566,0.00030051,30]
[392365368,1761407446013,-152.714256,0.00030051,30]
[392365369,1761407446023,-151.0,0.00030051,30]
[392365370,1761407446033,-405.263566,0.00030051,30]
[392365371,1761407446044,-153.434108,0.00030051,30]
[392365372,1761407446054,-151.0,0.00030051,30]
[392365373,1761407446064,-151.0,0.00030051,30]
[392365374,1761407446075,-405.263566,0.00030051,30]
[392365375,1761407446085,-151.0,0.00030051,30]
[392365376,1761407446095,-151.0,0.00030051,30]
[392365377,1761407446104,-151.0,0.00030051,30]
[392365378,1761407446114,-405.263566,0.00030051,30]
[392365379,1761407446123,-151.0,0.00030051,30]
[392365380,1761407446133,-151.0,0.00030051,30]
[392365381,1761407446144,-248.652686,0.00030051,30]
[392365382,1761407446155,-151.0,0.00030051,30]
[392365383,1761407446165,-158.903343,0.00030051,30]
[392365384,1761407446175,-158.903343,0.00030051,30]
[392365385,1761407446186,-158.903343,0.00030051,30]
[392365386,1761407446197,-151.443572,0.00030051,30]
[392365387,1761407446207,-158.903343,0.00030051,30]
[392365388,1761407446218,-151.0,0.00030051,30]
[392365389,1761407446229,-151.0,0.00030051,30]
[392365390,1761407446239,-151.0,0.00030051,30]
[392365391,1761407446249,-151.0,0.00030051,30]
[392365392,1761407446259,-151.0,0.00030051,30]
[392365393,1761407446269,-151.0,0.00030051,30]
[392365394,1761407446281,-151.0,0.00030051,30]
[392365395,1761407446292,-151.0,0.00030051,30]
[392365396,1761407446302,-151.0,0.00030051,30]
[392365397,1761407446314,-151.0,0.00030051,30]
[392365398,1761407446325,-151.0,0.00030051,30]
[392365399,1761407446335,-151.0,0.00030051,30]
[392365400,1761407446344,-206.252572,0.00030051,30]
[392365401,1761407446354,-206.252572,0.00030051,30]
[392365402,1761407446364,-151.0,0.00030051,30]
[392365403,1761407446375,-151.0,0.00030051,30]
[392365404,1761407446385,-206.252572,0.00030051,30]
[392365405,1761407446395,-229.306763,0.00030051,30]
[392365406,1761407446405,-206.252572,0.00030051,30]
[392365407,1761407446415,-984.013067,0.00030051,30]
[392365408,1761407446425,-151.0,0.00030051,30]
[392365409,1761407446435,-151.0,0.00030051,30]
[392365410,1761407446446,-229.306763,0.00030051,30]
[392365411,1761407446456,-984.013067,0.00030051,30]
[392365412,1761407446466,-151.0,0.00030051,30]
[392365413,1761407446476,-229.306763,0.00030051,30]
[392365414,1761407446485,-229.306763,0.00030051,30]
[392365415,1761407446495,-984.013067,0.00030051,30]
[392365416,1761407446504,-984.013067,0.00030051,30]
[392365417,1761407446514,-151.0,0.00030051,30]
[392365418,1761407446523,-151.0,0.00030051,30]
[392365420,1761407446533,-151.0,0.00030051,30]
[392365421,1761407446543,-151.0,0.00030051,30]
[392365422,1761407446558,-151.0,0.00030051,30]
[392365423,1761407446568,-151.0,0.00030051,30]
[392365424,1761407446577,-154.582619,0.00030051,30]
[392365425,1761407446587,-154.582619,0.00030051,30]
[392365426,1761407446596,-154.582619,0.00030051,30]
[392365427,1761407446607,-154.582619,0.00030051,30]
[392365428,1761407446617,-11437.4890408,0.00030052,2]
[392365429,1761407446627,-11750.9496539,0.00030052,2]
[392365430,1761407446636,-662.77,0.00030061,14]
[392365431,1761407446646,-20503.87274092,0.00030062,2]
[392365432,1761407446655,-741.6,0.000301,7]
[392365433,1761407446665,-476.4830027,0.000301,30]
[392365434,1761407446675,-307.45547766,0.000301,7]
[392365435,1761407446684,-11437.4890408,0.00030118,2]
[392365436,1761407446694,-11750.9496539,0.00030118,2]
[392365437,1761407446704,-151.0,0.00030128,30]
[392365438,1761407446714,-151.0,0.00030128,30]
[392365439,1761407446724,-151.0,0.00030128,30]
[392365440,1761407446734,-151.0,0.00030128,30]
[392365441,1761407446744,-151.0,0.00030128,30]
[392365442,1761407446753,-151.0,0.00030128,30]
[392365443,1761407446763,-151.0,0.00030128,30]
[392365444,1761407446773,-151.0,0.00030128,30]
[392365445,1761407446783,-151.0,0.00030128,30]
[392365446,1761407446792,-151.0,0.00030128,30]
[392365447,1761407446802,-151.0,0.00030128,30]
[392365448,1761407446812,-151.0,0.00030128,30]
[392365449,1761407446823,-151.0,0.00030128,30]
[392365450,1761407446833,-151.0,0.00030128,30]
[392365451,1761407446843,-151.0,0.00030128,30]
[392365452,1761407446852,-151.0,0.00030128,30]
[392365453,1761407447059,-151.0,0.00030128,30]
[392365454,1761407447069,-151.0,0.00030128,30]
[392365455,1761407447079,-151.0,0.00030128,30]
[392365456,1761407447088,-151.0,0.00030128,30]
[392365457,1761407447097,-150.0,0.00030141,7]
[392365458,1761407447106,-1000.0,0.00030148,2]
[392365459,1761407447116,-610.59795434,0.00030158,2]
[392365460,1761407447126,-166.0,0.00030164,2]
[392365461,1761407447136,-200.0,0.0003017,2]
[392365462,1761407447146,-200.0,0.00030171,2]
[392365463,1761407447156,-1753.06698631,0.00030175,2]
[392365464,1761407447167,-1753.06698631,0.00030175,2]
[392365465,1761407447177,-500.0,0.00030189,9]
[392365466,1761407447187,-500.0,0.00030189,9]
[392365467,1761407447197,-11750.9496539,0.00030202,2]
[392365468,1761407447207,-11437.4890408,0.00030211,2]
[392365469,1761407447217,-150.0,0.00030212,7]
[392365470,1761407447226,-500.0,0.00030231,9]
[392365471,1761407447236,-500.0,0.00030231,7]
[392365472,1761407447247,-426.9,0.00030237,3]
[392365473,1761407447258,-162.65,0.00030259,2]
[392365474,1761407447268,-11750.9496539,0.0003027,2]
[392365475,1761407447278,-11437.4890408,0.00030271,2]
[392365476,1761407447287,-176.76056241,0.00030273,2]
[392365477,1761407447297,-11437.4890408,0.0003028,2]
[392365478,1761407447306,-11750.9496539,0.0003028,2]
[392365479,1761407447315,-242.3924933,0.0003028,2]
[392365480,1761407447324,-151.0,0.00030281,30]
[392365481,1761407447334,-151.0,0.00030281,30]
[392365482,1761407447343,-151.0,0.00030281,30]
[392365483,1761407447352,-151.0,0.00030281,30]
[392365484,1761407447362,-151.0,0.00030281,30]
[392365485,1761407447371,-151.0,0.00030281,30]
[392365486,1761407447380,-151.0,0.00030281,30]
[392365487,1761407447389,-163.558112,0.00030281,30]
[392365488,1761407447399,-151.0,0.00030281,30]
[392365489,1761407447408,-151.0,0.00030281,30]
[392365490,1761407447417,-157.774973,0.00030281,30]
[392365491,1761407447426,-151.0,0.00030281,30]
[392365492,1761407447436,-153.096593,0.00030281,30]
[392365493,1761407447445,-151.0,0.00030281,30]
[392365494,1761407447454,-151.0,0.00030281,30]
[392365495,1761407447465,-151.0,0.00030281,30]
[392365496,1761407447475,-151.0,0.00030281,30]
[392365497,1761407447484,-154.946929,0.00030281,30]
[392365498,1761407447493,-151.0,0.00030281,30]
[392365499,1761407447502,-151.0,0.00030281,30]
[392365500,1761407447511,-151.0,0.00030281,30]
[392365501,1761407447521,-243.906039,0.00030281,30]
[392365502,1761407447530,-243.906039,0.00030281,30]
[392365503,1761407447539,-243.906039,0.00030281,30]
[392365504,1761407447548,-243.906039,0.00030281,30]
[392365505,1761407447557,-151.0,0.00030281,30]
[392365506,1761407447566,-151.0,0.00030281,30]
[392365507,1761407447576,-11437.4890408,0.0003029,2]
[392365508,1761407447584,-11750.9496539,0.0003029,2]
[392365509,1761407447594,-10773.8664292,0.00030293,2]
[392365510,1761407447604,-160.18,0.00030298,2]
[392365511,1761407447613,-2264.65,0.00030299,9]
[392365512,1761407447622,-19167.0,0.000303,2]
[392365513,1761407447631,-374.35151,0.000303,30]
[392365514,1761407447640,-374.35151,0.000303,30]
[392365515,1761407447650,-773.083977,0.000303,30]
[392365516,1761407447659,-151.0,0.000303,30]
[392365517,1761407447668,-374.35151,0.000303,30]
[392365518,1761407447677,-155.384356,0.000303,30]
[392365519,1761407447687,-773.083977,0.000303,30]
[392365520,1761407447696,-374.35151,0.000303,30]
[392365521,1761407447707,-151.0,0.000303,30]
[392365522,1761407447716,-773.083977,0.000303,30]
[392365523,1761407447725,-773.083977,0.000303,30]
[392365524,1761407447735,-151.0,0.000303,30]
[392365525,1761407447744,-158.058753,0.000303,30]
[392365526,1761407447754,-151.0,0.000303,30]
[392365527,1761407447763,-151.0,0.000303,30]
[392365528,1761407447772,-151.0,0.000303,30]
[392365529,1761407447782,-151.0,0.000303,30]
[392365530,1761407447791,-151.0,0.000303,30]
[392365531,1761407447800,-151.0,0.000303,30]
[392365532,1761407447809,-151.0,0.000303,30]
[392365533,1761407447819,-151.0,0.000303,30]
[392365534,1761407447828,-229.662786,0.000303,30]
[392365535,1761407447838,-151.0,0.000303,30]
[392365536,1761407447847,-229.662786,0.000303,30]
[392365537,1761407447856,-151.0,0.000303,30]
[392365538,1761407447866,-229.662786,0.000303,30]
[392365539,1761407447876,-187.11564,0.000303,30]
[392365540,1761407447885,-229.662786,0.000303,30]
[392365541,1761407447895,-151.0,0.000303,30]
[392365542,1761407447905,-151.0,0.000303,30]
[392365543,1761407447915,-151.0,0.000303,30]
[392365544,1761407447925,-151.0,0.000303,30]
[392365545,1761407447934,-151.0,0.000303,30]
[392365546,1761407447944,-187.752935,0.000303,30]
[392365547,1761407447954,-206.252572,0.000303,30]
[392365548,1761407447963,-206.252572,0.000303,30]
[392365549,1761407447973,-151.0,0.000303,30]
[392365550,1761407447983,-206.252572,0.000303,30]
[392365551,1761407447992,-229.306763,0.000303,30]
[392365552,1761407448001,-206.252572,0.000303,30]
[392365553,1761407448011,-151.0,0.000303,30]
[392365554,1761407448021,-984.013067,0.000303,30]
[392365555,1761407448030,-151.0,0.000303,30]
[392365556,1761407448040,-151.0,0.000303,30]
[392365557,1761407448049,-229.306763,0.000303,30]
[392365558,1761407448059,-984.013067,0.000303,30]
[392365559,1761407448068,-229.306763,0.000303,30]
[392365560,1761407448077,-229.306763,0.000303,30]
[392365561,1761407448087,-984.013067,0.000303,30]
[392365562,1761407448096,-984.013067,0.000303,30]
[392365563,1761407448107,-151.0,0.000303,30]
[392365564,1761407448116,-151.0,0.000303,30]
[392365565,1761407448126,-151.0,0.000303,30]
[392365566,1761407448136,-151.0,0.000303,30]
[392365567,1761407448145,-151.0,0.000303,30]
[392365568,1761407448154,-151.0,0.000303,30]
[392365569,1761407448164,-151.0,0.000303,30]
[392365570,1761407448173,-151.0,0.000303,30]
[392365571,1761407448182,-154.582619,0.000303,30]
[392365572,1761407448191,-422.804018,0.000303,30]
[392365573,1761407448200,-151.0,0.000303,30]
[392365574,1761407448210,-154.582619,0.000303,30]
[392365575,1761407448220,-422.804018,0.000303,30]
[392365576,1761407448229,-151.0,0.000303,30]
[392365577,1761407448238,-154.582619,0.000303,30]
[392365578,1761407448250,-422.804018,0.000303,30]
[392365579,1761407448262,-239.156984,0.000303,30]
[392365580,1761407448273,-154.582619,0.000303,30]
[392365581,1761407448283,-422.804018,0.000303,30]
[392365582,1761407448293,-151.0,0.000303,30]
[392365583,1761407448303,-478.01045988,0.00030312,2]
[392365584,1761407448312,-662.77,0.00030335,14]
[392365585,1761407448322,-11437.4890408,0.00030335,2]
[392365586,1761407448332,-11750.9496539,0.00030343,2]
[392365587,1761407448341,-303.04,0.00030347,2]
[392365588,1761407448350,-11437.4890408,0.00030353,2]
[392365589,1761407448360,-11750.9496539,0.00030353,2]
[392365590,1761407448368,-151.0,0.00030355,30]
[392365591,1761407448379,-151.0,0.00030355,30]
[392365592,1761407448388,-151.0,0.00030355,30]
[392365593,1761407448397,-151.0,0.00030355,30]
[392365594,1761407448407,-151.0,0.00030355,30]
[392365595,1761407448416,-151.0,0.00030355,30]
[392365596,1761407448426,-151.0,0.00030355,30]
[392365597,1761407448435,-151.0,0.00030355,30]
[392365598,1761407448445,-156.894359,0.00030355,30]
[392365599,1761407448455,-151.0,0.00030355,30]
[392365600,1761407448465,-180.496606,0.00030355,30]
[392365601,1761407448474,-180.496606,0.00030355,30]
[392365602,1761407448484,-180.496606,0.00030355,30]
[392365603,1761407448493,-180.496606,0.00030355,30]
[392365604,1761407448502,-151.0,0.00030355,30]
[392365605,1761407448511,-151.0,0.00030355,30]
[392365606,1761407448521,-151.0,0.00030355,30]
[392365607,1761407448530,-151.0,0.00030355,30]
[392365608,1761407448539,-151.0,0.00030355,30]
[392365609,1761407448549,-151.0,0.00030355,30]
[392365610,1761407448559,-11750.9496539,0.00030363,2]
[392365611,1761407448568,-20503.87274092,0.00030363,2]
[392365612,1761407448577,-150.0,0.00030367,7]
[392365613,1761407448587,-150.0,0.00030367,7]
[392365614,1761407448596,-11437.4890408,0.00030372,2]
[392365615,1761407448606,-11437.4890408,0.00030372,2]
[392365616,1761407448615,-501.93011314,0.00030373,5]
[392365617,1761407448624,-200.0,0.00030373,5]
[392365618,1761407448634,-500.0,0.00030373,5]
[392365619,1761407448643,-501.37103218,0.00030373,5]
[392365620,1761407448653,-500.0,0.00030373,5]
[392365621,1761407448662,-500.0,0.00030373,5]
[392365622,1761407448672,-160.26400388,0.00030373,5]
[392365623,1761407448682,-501.13924348,0.00030373,5]
[392365624,1761407448691,-500.0,0.00030373,5]
[392365625,1761407448701,-500.0,0.00030373,5]
[392365626,1761407448710,-500.0,0.00030373,5]
[392365627,1761407448719,-151.0,0.00030382,30]
[392365628,1761407448729,-151.0,0.00030382,30]
[392365629,1761407448739,-191.015694,0.00030382,30]
[392365630,1761407448748,-151.0,0.00030382,30]
[392365631,1761407448757,-151.0,0.00030382,30]
[392365632,1761407448767,-405.263566,0.00030382,30]
[392365633,1761407448776,-151.0,0.00030382,30]
[392365634,1761407448786,-405.263566,0.00030382,30]
[392365635,1761407448795,-151.0,0.00030382,30]
[392365636,1761407448805,-151.0,0.00030382,30]
[392365637,1761407448814,-405.263566,0.00030382,30]
[392365638,1761407448823,-151.0,0.00030382,30]
[392365639,1761407448832,-151.0,0.00030382,30]
[392365640,1761407448842,-405.263566,0.00030382,30]
[392365641,1761407448851,-151.0,0.00030382,30]
[392365642,1761407448861,-151.0,0.00030382,30]
[392365643,1761407448870,-158.903343,0.00030382,30]
[392365644,1761407448879,-158.903343,0.00030382,30]
[392365645,1761407448888,-158.903343,0.00030382,30]
[392365646,1761407448897,-158.903343,0.00030382,30]
[392365647,1761407448907,-151.0,0.00030382,30]
[392365648,1761407448916,-151.0,0.00030382,30]
[392365649,1761407448925,-151.0,0.00030382,30]
[392365650,1761407448934,-151.0,0.00030382,30]
[392365651,1761407448943,-11750.9496539,0.00030382,2]
[392365652,1761407448953,-151.0,0.00030391,30]
[392365653,1761407448961,-152.67406,0.00030391,30]
[392365654,1761407448971,-151.0,0.00030391,30]
[392365655,1761407448980,-151.0,0.00030391,30]
[392365656,1761407448989,-151.0,0.00030391,30]
[392365657,1761407448998,-151.0,0.00030391,30]
[392365658,1761407449007,-151.0,0.00030391,30]
[392365659,1761407449016,-151.0,0.00030391,30]
[392365660,1761407449026,-151.0,0.00030391,30]
[392365661,1761407449035,-151.0,0.00030391,30]
[392365662,1761407449045,-151.0,0.00030391,30]
[392365663,1761407449054,-151.0,0.00030391,30]
[392365664,1761407449064,-151.0,0.00030391,30]
[392365665,1761407449073,-151.0,0.00030391,30]
[392365666,1761407449082,-11750.9496539,0.00030391,2]
[392365667,1761407449091,-11750.9496539,0.00030392,2]
[392365668,1761407449101,-151.0,0.00030392,30]
[392365669,1761407449110,-152.718787,0.00030392,30]
[392365670,1761407449120,-151.0,0.00030392,30]
[392365671,1761407449129,-151.0,0.00030392,30]
[392365672,1761407449138,-151.0,0.00030392,30]
[392365673,1761407449147,-151.0,0.00030392,30]
[392365674,1761407449157,-151.0,0.00030392,30]
[392365675,1761407449166,-151.0,0.00030392,30]
[392365676,1761407449175,-151.0,0.00030392,30]
[392365677,1761407449184,-151.0,0.00030392,30]
[392365678,1761407449194,-196.602169,0.00030392,30]
[392365679,1761407449204,-243.906039,0.00030392,30]
[392365680,1761407449213,-243.906039,0.00030392,30]
[392365681,1761407449222,-243.906039,0.00030392,30]
[392365682,1761407449231,-243.906039,0.00030392,30]
[392365683,1761407449241,-151.0,0.00030392,30]
[392365684,1761407449250,-232.010452,0.00030392,30]
[392365685,1761407449260,-500.0,0.00030392,9]
[392365686,1761407449269,-374.35151,0.00030392,30]
[392365687,1761407449278,-374.35151,0.00030392,30]
[392365688,1761407449287,-773.083977,0.00030392,30]
[392365689,1761407449296,-374.35151,0.00030392,30]
[392365690,1761407449305,-151.0,0.00030392,30]
[392365691,1761407449314,-500.0,0.00030392,7]
[392365692,1761407449324,-773.083977,0.00030392,30]
[392365693,1761407449333,-374.35151,0.00030392,30]
[392365694,1761407449342,-773.083977,0.00030392,30]
[392365695,1761407449351,-773.083977,0.00030392,30]
[392365696,1761407449360,-288.712987,0.00030392,30]
[392365697,1761407449369,-151.0,0.00030392,30]
[392365698,1761407449378,-151.0,0.00030392,30]
[392365699,1761407449387,-151.0,0.00030392,30]
[392365700,1761407449397,-151.0,0.00030392,30]
[392365701,1761407449454,-151.0,0.00030392,30]
[392365702,1761407449463,-151.0,0.00030392,30]
[392365703,1761407449472,-151.0,0.00030392,30]
[392365704,1761407449481,-229.662786,0.00030392,30]
[392365705,1761407449490,-151.0,0.00030392,30]
[392365706,1761407449499,-229.662786,0.00030392,30]
[392365707,1761407449509,-151.0,0.00030392,30]
[392365708,1761407449518,-229.662786,0.00030392,30]